fUST/lending_fUST_20250924
["ID","MTS","AMOUNT","RATE_DAILY","PERIOD"]
[387303358,1758684642987,-261.11286114,0.00023663,2]
[387303359,1758684642996,-480.0,0.00023663,2]
[387303361,1758684643006,-480.0,0.00023663,2]
[387303364,1758684643016,-480.0,0.00023663,2]
[387303366,1758684643027,-480.0,0.00023663,2]
[387303368,1758684643036,-480.0,0.00023663,2]
[387303370,1758684643046,-480.0,0.00023663,2]
[387303372,1758684643055,-480.0,0.00023663,2]
[387303375,1758684643064,-480.0,0.00023663,2]
[387303377,1758684643074,-485.40755268,0.00023663,2]
[387303379,1758684643084,-481.94456276,0.00023663,2]
[387303381,1758684643093,-555.14,0.00023663,2]
[387303383,1758684643102,-480.0,0.00023663,2]
[387303385,1758684643111,-480.0,0.00023663,2]
[387303386,1758684643120,-480.0,0.00023663,2]
[387303389,1758684643130,-486.15802154,0.00023663,2]
[387303390,1758684643140,-480.0,0.00023663,2]
[387303393,1758684643149,-480.0,0.00023663,2]
[387303395,1758684643159,-480.0,0.00023663,2]
[387303397,1758684643168,-480.0,0.00023663,2]
[387303399,1758684643177,-480.0,0.00023663,2]
[387303401,1758684643187,-480.0,0.00023663,2]
[387303403,1758684643196,-480.0,0.00023663,2]
[387303406,1758684643205,-486.23372149,0.00023663,2]
[387303407,1758684643214,-498.3342642,0.00023663,2]
[387303409,1758684643224,-480.0,0.00023663,2]
[387303412,1758684643236,-517.9255138,0.00023663,2]
[387303413,1758684643245,-502.97057102,0.00023663,2]
[387303415,1758684643254,-480.0,0.00023663,2]
[387303417,1758684643263,-490.02385056,0.00023663,2]
[387303419,1758684643275,-2358.86,0.00023663,2]
[387303421,1758684643284,-480.0,0.00023663,2]
[387303424,1758684643293,-480.0,0.00023663,2]
[387303426,1758684643303,-151.0,0.00023663,7]
[387303428,1758684643312,-173.070984,0.00023663,7]
[387303430,1758684643322,-153.068805,0.00023663,7]
[387303432,1758684643331,-173.070984,0.00023663,7]
[387303434,1758684643340,-173.070984,0.00023663,7]
[387303436,1758684643349,-173.070984,0.00023663,7]
[387303438,1758684643359,-154.239552,0.00023663,7]
[387303440,1758684643368,-480.0,0.00023663,2]
[387303442,1758684643377,-791.03,0.00023663,2]
[387303444,1758684643386,-151.0,0.00023663,7]
[387303446,1758684643395,-153.245242,0.00023663,7]
[387303448,1758684643404,-151.0,0.00023663,7]
[387303450,1758684643414,-151.0,0.00023663,7]
[387303452,1758684643423,-278.434987,0.00023663,7]
[387303454,1758684643432,-262.14023498,0.00023664,2]
[387303456,1758684643442,-480.0,0.00023664,2]
[387303458,1758684643451,-480.0,0.00023664,2]
[387303460,1758684643461,-480.0,0.00023664,2]
[387303462,1758684643471,-509.72332162,0.00023664,2]
[387303464,1758684643480,-485.40594118,0.00023664,2]
[387303473,1758684643555,-616.94142351,0.00023664,2]
[387303475,1758684643565,-260.51471919,0.00023664,2]
[387303477,1758684643575,-484.79173251,0.00023664,2]
[387303479,1758684643585,-480.0,0.00023664,2]
[387303481,1758684643595,-453.60001914,0.00023664,2]
[387303483,1758684643604,-480.0,0.00023664,2]
[387303485,1758684643613,-499.73752922,0.00023664,2]
[387303487,1758684643623,-480.0,0.00023664,2]
[387303489,1758684643632,-347.2425765,0.00023664,2]
[387303491,1758684643641,-480.0,0.00023664,2]
[387303493,1758684643651,-480.0,0.00023664,2]
[387303495,1758684643660,-483.78567155,0.00023664,2]
[387303497,1758684643669,-558.76566959,0.00023664,2]
[387303499,1758684643679,-480.0,0.00023664,2]
[387303501,1758684643688,-480.0,0.00023664,2]
[387303503,1758684643697,-480.0,0.00023664,2]
[387303505,1758684643706,-480.0,0.00023664,2]
[387303507,1758684643715,-480.0,0.00023664,2]
[387303508,1758684643724,-482.7187043,0.00023664,2]
[387303511,1758684643734,-482.69991771,0.00023664,2]
[387303512,1758684643744,-480.0,0.00023664,2]
[387303514,1758684643753,-483.47777148,0.00023664,2]
[387303516,1758684643762,-484.66022316,0.00023664,2]
[387303518,1758684643772,-480.0,0.00023664,2]
[387303520,1758684643782,-480.0,0.00023664,2]
[387303523,1758684643791,-487.1551641,0.00023664,2]
[387303525,1758684643801,-480.0,0.00023664,2]
[387303527,1758684643810,-487.36082512,0.00023664,2]
[387303529,1758684643820,-480.0,0.00023664,2]
[387303530,1758684643829,-485.4838898,0.00023664,2]
[387303532,1758684643838,-487.49975505,0.00023664,2]
[387303534,1758684643847,-480.0,0.00023664,2]
[387303536,1758684643857,-480.0,0.00023664,2]
[387303539,1758684643866,-480.0,0.00023664,2]
[387303541,1758684643876,-480.0,0.00023664,2]
[387303543,1758684643885,-151.649246,0.00023664,7]
[387303545,1758684643895,-480.0,0.00023664,2]
[387303547,1758684643904,-151.0,0.00023664,7]
[387303549,1758684643913,-480.0,0.00023664,2]
[387303551,1758684643923,-151.0,0.00023664,7]
[387303553,1758684643932,-151.0,0.00023664,7]
[387303555,1758684643941,-185.795673,0.00023664,7]
[387303557,1758684643950,-151.0,0.00023664,7]
[387303559,1758684643959,-151.0,0.00023664,7]
[387303561,1758684643968,-151.0,0.00023664,7]
[387303562,1758684643977,-151.0,0.00023664,7]
[387303564,1758684643987,-161.16329,0.00023664,7]
[387303566,1758684643995,-151.0,0.00023664,7]
[387303568,1758684644005,-1000.0,0.00023721,2]
[387303570,1758684644014,-179.65864857,0.00023834,2]
[387303572,1758684644027,-155.44257954,0.00023837,2]
[387303574,1758684644037,-810.74,0.00023897,2]
[387303576,1758684644046,-249.784963,0.00023897,7]
[387303578,1758684644056,-151.441873,0.00023897,7]
[387303580,1758684644065,-151.0,0.00023897,7]
[387303582,1758684644075,-151.0,0.00023897,7]
[387303584,1758684644085,-480.0,0.00023897,2]
[387303586,1758684644096,-486.82094555,0.00023897,2]
[387303589,1758684644115,-464.25802383,0.00023897,2]
[387303591,1758684644126,-480.0,0.00023897,2]
[387303593,1758684644135,-480.0,0.00023897,2]
[387303594,1758684644144,-480.0,0.00023897,2]
[387303597,1758684644154,-1079.19,0.00023897,2]
[387303599,1758684644163,-225.54824361,0.00023897,2]
[387303601,1758684644172,-480.0,0.00023898,2]
[387303603,1758684644181,-487.47381607,0.00023898,2]
[387303605,1758684644191,-480.0,0.00023898,2]
[387303607,1758684644200,-480.0,0.00023898,2]
[387303609,1758684644210,-480.0,0.00023898,2]
[387303611,1758684644219,-480.0,0.00023898,2]
[387303612,1758684644239,-480.0,0.00023898,2]
[387303614,1758684644253,-480.0,0.00023898,2]
[387303616,1758684644262,-480.0,0.00023898,2]
[387303619,1758684644277,-491.6859979,0.00023898,2]
[387303621,1758684644287,-480.0,0.00023898,2]
[387303623,1758684644296,-1686.9,0.00023898,2]
[387303624,1758684644306,-484.65962018,0.00023898,2]
[387303626,1758684644316,-480.0,0.00023898,2]
[387303628,1758684644325,-480.0,0.00023898,2]
[387303630,1758684644334,-483.34386874,0.00023898,2]
[387303633,1758684644346,-480.0,0.00023898,2]
[387303635,1758684644355,-480.0,0.00023898,2]
[387303637,1758684644365,-480.0,0.00023898,2]
[387303639,1758684644374,-601.28,0.00023898,2]
[387303640,1758684644384,-480.0,0.00023898,2]
[387303642,1758684644393,-621.33988521,0.00023898,2]
[387303644,1758684644402,-480.0,0.00023898,2]
[387303646,1758684644411,-480.0,0.00023898,2]
[387303648,1758684644421,-480.0,0.00023898,2]
[387303650,1758684644430,-491.73096177,0.00023898,2]
[387303652,1758684644439,-480.0,0.00023898,2]
[387303654,1758684644450,-480.0,0.00023898,2]
[387303656,1758684644459,-490.89893736,0.00023898,2]
[387303658,1758684644468,-480.0,0.00023898,2]
[387303660,1758684644478,-480.0,0.00023898,2]
[387303662,1758684644487,-480.0,0.00023898,2]
[387303664,1758684644496,-480.0,0.00023898,2]
[387303666,1758684644505,-480.0,0.00023898,2]
[387303668,1758684644514,-480.0,0.00023898,2]
[387303670,1758684644528,-679.95,0.00023898,2]
[387303672,1758684644537,-480.0,0.00023898,2]
[387303674,1758684644546,-480.0,0.00023898,2]
[387303676,1758684644555,-480.0,0.00023898,2]
[387303678,1758684644565,-480.0,0.00023898,2]
[387303680,1758684644574,-480.0,0.00023898,2]
[387303682,1758684644583,-480.0,0.00023898,2]
[387303684,1758684644592,-480.0,0.00023898,2]
[387303686,1758684644602,-480.0,0.00023898,2]
[387303688,1758684644611,-969.9,0.00023898,2]
[387303690,1758684644620,-480.0,0.00023898,2]
[387303692,1758684644630,-480.0,0.00023898,2]
[387303694,1758684644639,-522.8,0.00023898,2]
[387303696,1758684644648,-480.0,0.00023898,2]
[387303698,1758684644657,-200513.66872244,0.000239,2]
[387303700,1758684644666,-206.937164,0.000239,7]
[387303702,1758684644675,-265.149475,0.000239,7]
[387303704,1758684644685,-151.0,0.000239,7]
[387303706,1758684644693,-151.0,0.000239,7]
[387303708,1758684644703,-151.0,0.000239,7]
[387303710,1758684644713,-151.0,0.000239,7]
[387303712,1758684644722,-173.070984,0.000239,7]
[387303714,1758684644731,-151.0,0.000239,7]
[387303716,1758684644741,-151.0,0.000239,7]
[387303718,1758684644752,-151.0,0.000239,7]
[387303720,1758684644761,-173.070984,0.000239,7]
[387303722,1758684644774,-151.0,0.000239,7]
[387303724,1758684644783,-151.0,0.000239,7]
[387303726,1758684644793,-151.0,0.000239,7]
[387303728,1758684644802,-151.0,0.000239,7]
[387303730,1758684644811,-173.070984,0.000239,7]
[387303732,1758684644821,-151.0,0.000239,7]
[387303734,1758684644830,-272.944367,0.000239,7]
[387303736,1758684644839,-173.070984,0.000239,7]
[387303745,1758684644911,-153.833013,0.000239,7]
[387303747,1758684644922,-151.0,0.000239,7]
[387303749,1758684644932,-151.0,0.000239,7]
[387303751,1758684644942,-151.0,0.000239,7]
[387303753,1758684644952,-151.0,0.000239,7]
[387303755,1758684644961,-153.126104,0.000239,7]
[387303757,1758684644970,-480.0,0.00023907,2]
[387303759,1758684644980,-392.19662923,0.00023921,2]
[387303761,1758684644989,-1116.57080184,0.00023921,2]
[387303763,1758684644999,-503.2480777,0.00023921,2]
[387303765,1758684645009,-1000.0,0.00023921,2]
[387303767,1758684645018,-493.12951659,0.00023927,2]
[387303769,1758684645032,-480.0,0.00023927,2]
[387303771,1758684645041,-480.0,0.00023927,2]
[387303773,1758684645051,-480.0,0.00023927,2]
[387303775,1758684645062,-462.21015604,0.00023936,2]
[387303777,1758684645072,-490.42354924,0.00023936,2]
[387303779,1758684645083,-480.0,0.00023936,2]
[387303782,1758684645093,-459.34089145,0.00023936,2]
[387303784,1758684645102,-480.0,0.00023936,2]
[387303785,1758684645112,-482.15798162,0.00023936,2]
[387303787,1758684645123,-483.97321665,0.00023936,2]
[387303790,1758684645133,-483.61224713,0.00023936,2]
[387303792,1758684645142,-480.0,0.00023936,2]
[387303794,1758684645152,-627.48298346,0.00023936,2]
[387303796,1758684645161,-480.0,0.00023936,2]
[387303798,1758684645171,-480.0,0.00023936,2]
[387303800,1758684645181,-482.71125195,0.00023936,2]
[387303802,1758684645190,-480.0,0.00023936,2]
[387303804,1758684645199,-480.0,0.00023936,2]
[387303806,1758684645217,-480.0,0.00023936,2]
[387303808,1758684645228,-480.0,0.00023936,2]
[387303810,1758684645240,-480.0,0.00023936,2]
[387303812,1758684645249,-480.0,0.00023936,2]
[387303814,1758684645258,-480.0,0.00023936,2]
[387303816,1758684645267,-497.20787567,0.00023936,2]
[387303818,1758684645282,-492.24256287,0.00023936,2]
[387303820,1758684645292,-480.0,0.00023936,2]
[387303822,1758684645301,-480.0,0.00023936,2]
[387303824,1758684645313,-571.92,0.00023936,2]
[387303826,1758684645323,-480.0,0.00023936,2]
[387303828,1758684645332,-480.0,0.00023936,2]
[387303830,1758684645342,-480.0,0.00023936,2]
[387303832,1758684645351,-480.0,0.00023937,2]
[387303834,1758684645360,-480.0,0.00023937,2]
[387303836,1758684645369,-480.0,0.00023937,2]
[387303838,1758684645379,-480.0,0.00023937,2]
[387303840,1758684645388,-480.0,0.00023937,2]
[387303842,1758684645397,-480.0,0.00023937,2]
[387303844,1758684645406,-480.0,0.00023937,2]
[387303846,1758684645415,-480.0,0.00023937,2]
[387303848,1758684645424,-555.14,0.00023937,2]
[387303850,1758684645433,-480.0,0.00023937,2]
[387303852,1758684645443,-480.0,0.00023937,2]
[387303854,1758684645452,-321.78034027,0.00023937,2]
[387303856,1758684645461,-480.0,0.00023937,2]
[387303858,1758684645470,-203.347964,0.00023937,7]
[387303860,1758684645479,-151.0,0.00023937,7]
[387303862,1758684645489,-151.0,0.00023937,7]
[387303864,1758684645498,-152.037493,0.00023937,7]
[387303866,1758684645507,-480.0,0.00023937,2]
[387303868,1758684645517,-151.0,0.00023937,7]
[387303870,1758684645530,-480.0,0.00023937,2]
[387303872,1758684645540,-512.65291392,0.00023937,2]
[387303874,1758684645549,-480.0,0.00023937,2]
[387303876,1758684645558,-480.0,0.00023937,2]
[387303878,1758684645568,-480.0,0.00023937,2]
[387303880,1758684645577,-151.0,0.00023937,7]
[387303882,1758684645586,-156.944736,0.00023937,7]
[387303884,1758684645595,-480.0,0.00023937,2]
[387303886,1758684645605,-153.054955,0.00023937,7]
[387303888,1758684645614,-480.0,0.00023937,2]
[387303890,1758684645623,-156.483342,0.00023937,7]
[387303892,1758684645632,-152.898962,0.00023937,7]
[387303894,1758684645641,-2358.86,0.00023937,2]
[387303896,1758684645650,-536.34104891,0.00023937,2]
[387303898,1758684645660,-480.0,0.00023937,2]
[387303900,1758684645669,-490.76806707,0.00023937,2]
[387303902,1758684645678,-791.03,0.00023937,2]
[387303904,1758684645687,-482.14275731,0.00023938,2]
[387303906,1758684645696,-480.0,0.00023938,2]
[387303908,1758684645706,-491.37079064,0.00023938,2]
[387303910,1758684645715,-480.0,0.00023938,2]
[387303912,1758684645724,-480.0,0.00023938,2]
[387303914,1758684645733,-480.0,0.00023938,2]
[387303916,1758684645749,-480.0,0.00023938,2]
[387303918,1758684645759,-469.39893686,0.00023938,2]
[387303920,1758684645769,-480.0,0.00023938,2]
[387303922,1758684645782,-482.59243787,0.00023938,2]
[387303924,1758684645791,-485.81203105,0.00023938,2]
[387303926,1758684645801,-491.96788524,0.00023938,2]
[387303928,1758684645810,-485.14042954,0.00023938,2]
[387303930,1758684645819,-483.77828543,0.00023938,2]
[387303932,1758684645828,-491.11787085,0.00023938,2]
[387303934,1758684645837,-480.0,0.00023938,2]
[387303936,1758684645846,-480.0,0.00023938,2]
[387303938,1758684645856,-480.0,0.00023938,2]
[387303941,1758684645866,-252.73907521,0.00023938,2]
[387303942,1758684645875,-480.0,0.00023938,2]
[387303944,1758684645884,-490.35936356,0.00023938,2]
[387303946,1758684645893,-480.0,0.00023938,2]
[387303948,1758684645902,-480.0,0.00023938,2]
[387303949,1758684645912,-198.853,0.00023948,5]
[387303950,1758684645921,-150.0,0.00023973,2]
[387303951,1758684645930,-417.15472785,0.00024,3]
[387303952,1758684645940,-417.15472785,0.00024,3]
[387303953,1758684645949,-155.44257954,0.00024111,2]
[387303954,1758684645958,-3744.39,0.0002413,2]
[387303955,1758684645968,-2860.32077749,0.00024171,2]
[387303956,1758684645977,-810.74,0.00024171,2]
[387303957,1758684645986,-480.0,0.00024171,2]
[387303958,1758684645996,-480.0,0.00024171,2]
[387303960,1758684646006,-480.0,0.00024171,2]
[387303962,1758684646015,-480.0,0.00024171,2]
[387303964,1758684646027,-1079.19,0.00024171,2]
[387303965,1758684646036,-480.0,0.00024172,2]
[387303966,1758684646046,-480.0,0.00024172,2]
[387303967,1758684646055,-480.0,0.00024172,2]
[387303968,1758684646065,-480.0,0.00024172,2]
[387303969,1758684646074,-480.0,0.00024172,2]
[387303970,1758684646083,-480.0,0.00024172,2]
[387303971,1758684646092,-480.0,0.00024172,2]
[387303972,1758684646102,-1686.9,0.00024172,2]
[387303975,1758684646171,-480.0,0.00024172,2]
[387303977,1758684646181,-480.0,0.00024172,2]
[387303979,1758684646191,-480.0,0.00024172,2]
[387303981,1758684646201,-508.90209576,0.00024172,2]
[387303983,1758684646210,-601.28,0.00024172,2]
[387303985,1758684646219,-480.0,0.00024172,2]
[387303986,1758684646230,-480.0,0.00024172,2]
[387303988,1758684646241,-480.0,0.00024172,2]
[387303990,1758684646251,-480.0,0.00024172,2]
[387303992,1758684646260,-480.0,0.00024172,2]
[387303994,1758684646270,-480.0,0.00024172,2]
[387303996,1758684646282,-529.17878966,0.00024172,2]
[387303998,1758684646291,-480.0,0.00024172,2]
[387304000,1758684646300,-480.0,0.00024172,2]
[387304002,1758684646311,-480.0,0.00024172,2]
[387304004,1758684646320,-480.0,0.00024172,2]
[387304006,1758684646330,-480.0,0.00024172,2]
[387304008,1758684646340,-679.95,0.00024172,2]
[387304010,1758684646350,-480.0,0.00024172,2]
[387304012,1758684646359,-480.0,0.00024172,2]
[387304014,1758684646369,-506.89163456,0.00024172,2]
[387304016,1758684646378,-480.0,0.00024172,2]
[387304018,1758684646388,-480.0,0.00024172,2]
[387304020,1758684646398,-480.0,0.00024172,2]
[387304022,1758684646408,-480.0,0.00024172,2]
[387304024,1758684646417,-480.0,0.00024172,2]
[387304026,1758684646426,-969.9,0.00024172,2]
[387304028,1758684646436,-480.0,0.00024172,2]
[387304030,1758684646445,-480.0,0.00024172,2]
[387304032,1758684646455,-522.8,0.00024172,2]
[387304034,1758684646464,-480.0,0.00024172,2]
[387304036,1758684646473,-480.0,0.00024181,2]
[387304038,1758684646483,-882.30255089,0.00024187,2]
[387304040,1758684646492,-480.0,0.00024201,2]
[387304042,1758684646502,-480.0,0.00024201,2]
[387304044,1758684646511,-480.0,0.00024201,2]
[387304046,1758684646523,-480.0,0.0002421,2]
[387304048,1758684646533,-490.69273148,0.0002421,2]
[387304050,1758684646543,-480.0,0.0002421,2]
[387304052,1758684646552,-480.0,0.0002421,2]
[387304054,1758684646561,-480.0,0.0002421,2]
[387304056,1758684646571,-480.0,0.0002421,2]
[387304058,1758684646581,-480.0,0.0002421,2]
[387304060,1758684646591,-484.24631534,0.0002421,2]
[387304062,1758684646600,-501.83460205,0.0002421,2]
[387304064,1758684646610,-152.159225,0.0002421,7]
[387304066,1758684646619,-152.648889,0.0002421,7]
[387304068,1758684646628,-480.0,0.0002421,2]
[387304070,1758684646637,-480.0,0.0002421,2]
[387304072,1758684646647,-151.0,0.0002421,7]
[387304074,1758684646656,-160.995213,0.0002421,7]
[387304076,1758684646665,-571.92,0.0002421,2]
[387304078,1758684646674,-480.0,0.0002421,2]
[387304080,1758684646683,-480.0,0.0002421,2]
[387304082,1758684646692,-480.0,0.0002421,2]
[387304084,1758684646701,-493.47773043,0.00024211,2]
[387304086,1758684646711,-546.57135864,0.00024211,2]
[387304088,1758684646720,-493.5429077,0.00024211,2]
[387304090,1758684646729,-480.0,0.00024211,2]
[387304092,1758684646739,-480.0,0.00024211,2]
[387304094,1758684646748,-480.0,0.00024211,2]
[387304096,1758684646757,-555.14,0.00024211,2]
[387304098,1758684646766,-480.0,0.00024211,2]
[387304100,1758684646779,-516.93299999,0.00024211,2]
[387304102,1758684646788,-480.0,0.00024211,2]
[387304104,1758684646798,-456.62664937,0.00024211,2]
[387304106,1758684646807,-480.0,0.00024211,2]
[387304108,1758684646817,-480.0,0.00024211,2]
[387304110,1758684646826,-2358.86,0.00024211,2]
[387304112,1758684646835,-480.0,0.00024211,2]
[387304114,1758684646844,-791.03,0.00024211,2]
[387304116,1758684646853,-480.0,0.00024212,2]
[387304118,1758684646863,-489.77199478,0.00024212,2]
[387304120,1758684646872,-287.53172578,0.00024212,2]
[387304122,1758684646882,-151.0,0.00024212,7]
[387304124,1758684646892,-151.0,0.00024212,7]
[387304126,1758684646901,-151.0,0.00024212,7]
[387304128,1758684646911,-151.987564,0.00024212,7]
[387304130,1758684646920,-480.0,0.00024212,2]
[387304132,1758684646929,-152.352054,0.00024212,7]
[387304134,1758684646940,-497.03896248,0.00024212,2]
[387304136,1758684646949,-380.0,0.00024212,2]
[387304138,1758684646959,-480.0,0.00024212,2]
[387304140,1758684646967,-233.09227744,0.00024212,2]
[387304142,1758684646976,-480.0,0.00024212,2]
[387304144,1758684646986,-532.2324375,0.00024212,7]
[387304145,1758684646996,-500.0,0.00024268,2]
[387304147,1758684647005,-499.15109246,0.00024316,2]
[387304149,1758684647014,-500.0,0.00024316,2]
[387304151,1758684647025,-160.0,0.00024405,2]
[387304153,1758684647035,-810.74,0.00024445,2]
[387304155,1758684647044,-480.0,0.00024445,2]
[387304157,1758684647053,-480.0,0.00024445,2]
[387304159,1758684647062,-480.0,0.00024445,2]
[387304161,1758684647071,-1079.19,0.00024445,2]
[387304163,1758684647080,-334.27914084,0.00024446,2]
[387304165,1758684647089,-480.0,0.00024446,2]
[387304167,1758684647100,-480.0,0.00024446,2]
[387304169,1758684647109,-480.0,0.00024446,2]
[387304171,1758684647118,-590.63,0.00024446,2]
[387304173,1758684647127,-480.0,0.00024446,2]
[387304175,1758684647136,-480.0,0.00024446,2]
[387304177,1758684647146,-1686.9,0.00024446,2]
[387304179,1758684647155,-480.0,0.00024446,2]
[387304181,1758684647164,-480.0,0.00024446,2]
[387304183,1758684647173,-480.0,0.00024446,2]
[387304185,1758684647182,-601.28,0.00024446,2]
[387304187,1758684647191,-480.0,0.00024446,2]
[387304189,1758684647200,-480.0,0.00024446,2]
[387304191,1758684647209,-480.0,0.00024446,2]
[387304193,1758684647218,-480.0,0.00024446,2]
[387304195,1758684647229,-353.7986686,0.00024446,2]
[387304202,1758684647242,-480.0,0.00024446,2]
[387304204,1758684647308,-480.0,0.00024446,2]
[387304206,1758684647319,-480.0,0.00024446,2]
[387304208,1758684647328,-498.19049212,0.00024446,2]
[387304210,1758684647338,-480.0,0.00024446,2]
[387304212,1758684647347,-480.0,0.00024446,2]
[387304214,1758684647356,-679.95,0.00024446,2]
[387304216,1758684647365,-480.0,0.00024446,2]
[387304218,1758684647375,-480.0,0.00024446,2]
[387304220,1758684647383,-480.0,0.00024446,2]
[387304222,1758684647393,-480.0,0.00024446,2]
[387304224,1758684647402,-969.9,0.00024446,2]
[387304226,1758684647411,-480.0,0.00024446,2]
[387304228,1758684647421,-480.0,0.00024446,2]
[387304230,1758684647429,-522.8,0.00024446,2]
[387304232,1758684647439,-480.0,0.00024446,2]
[387304234,1758684647449,-514.08,0.00024455,2]
[387304235,1758684647459,-1503.92049297,0.00024468,2]
[387304237,1758684647468,-2352.58,0.00024475,3]
[387304239,1758684647478,-1176.28,0.00024475,3]
[387304241,1758684647489,-588.14,0.00024475,3]
[387304243,1758684647499,-480.0,0.00024475,2]
[387304245,1758684647508,-159.783158,0.00024475,7]
[387304247,1758684647518,-173.070984,0.00024475,7]
[387304249,1758684647531,-173.070984,0.00024475,7]
[387304251,1758684647540,-173.070984,0.00024475,7]
[387304253,1758684647550,-173.070984,0.00024475,7]
[387304255,1758684647559,-480.0,0.00024475,2]
[387304257,1758684647569,-151.0,0.00024475,7]
[387304259,1758684647579,-151.0,0.00024475,7]
[387304261,1758684647589,-480.0,0.00024475,2]
[387304263,1758684647599,-374.7833861,0.00024484,2]
[387304265,1758684647608,-480.0,0.00024484,2]
[387304267,1758684647618,-480.0,0.00024484,2]
[387304269,1758684647627,-480.0,0.00024484,2]
[387304271,1758684647637,-387.18041869,0.00024484,2]
[387304273,1758684647647,-356.20244263,0.00024484,2]
[387304275,1758684647656,-571.92,0.00024484,2]
[387304277,1758684647666,-480.0,0.00024484,2]
[387304279,1758684647675,-480.0,0.00024484,2]
[387304281,1758684647684,-151.0,0.00024484,7]
[387304283,1758684647694,-159.172264,0.00024484,7]
[387304285,1758684647703,-480.0,0.00024484,2]
[387304287,1758684647712,-151.0,0.00024484,7]
[387304289,1758684647722,-158.45498,0.00024484,7]
[387304291,1758684647731,-480.0,0.00024485,2]
[387304293,1758684647740,-480.0,0.00024485,2]
[387304295,1758684647749,-480.0,0.00024485,2]
[387304297,1758684647758,-555.14,0.00024485,2]
[387304299,1758684647767,-494.5613551,0.00024485,2]
[387304301,1758684647778,-480.0,0.00024485,2]
[387304303,1758684647788,-480.0,0.00024485,2]
[387304305,1758684647797,-2358.86,0.00024485,2]
[387304307,1758684647806,-480.0,0.00024485,2]
[387304308,1758684647815,-791.03,0.00024485,2]
[387304310,1758684647825,-480.0,0.00024486,2]
[387304312,1758684647835,-480.0,0.00024486,2]
[387304314,1758684647844,-480.0,0.00024486,2]
[387304316,1758684647854,-300.0,0.00024521,2]
[387304318,1758684647864,-32642.22716723,0.0002465,2]
[387304320,1758684647873,-507.1184827,0.0002465,2]
[387304322,1758684647882,-150.0,0.00024658,2]
[387304324,1758684647891,-200.0,0.00024658,2]
[387304326,1758684647901,-380.0,0.00024658,2]
[387304328,1758684647910,-238.00791119,0.00024658,2]
[387304330,1758684647919,-151.0,0.000247,6]
[387304332,1758684647928,-174.81825162,0.000247,2]
[387304334,1758684647937,-810.74,0.00024719,2]
[387304336,1758684647946,-480.0,0.00024719,2]
[387304338,1758684647955,-480.0,0.00024719,2]
[387304340,1758684647965,-480.0,0.00024719,2]
[387304342,1758684647974,-1079.19,0.00024719,2]
[387304344,1758684647983,-480.0,0.0002472,2]
[387304346,1758684647993,-480.0,0.0002472,2]
[387304348,1758684648002,-578.82701108,0.0002472,2]
[387304350,1758684648012,-480.0,0.0002472,2]
[387304352,1758684648021,-480.0,0.0002472,2]
[387304354,1758684648033,-1686.9,0.0002472,2]
[387304355,1758684648042,-480.0,0.0002472,2]